fUST/lending_fUST_20240918
["ID","MTS","AMOUNT","RATE_DAILY","PERIOD"]
[338453843,1726648241925,-500.0,0.00020892,2]
[338453844,1726648241934,-500.0,0.00020892,2]
[338453845,1726648241943,-500.0,0.00020892,2]
[338453846,1726648241954,-500.0,0.00020892,2]
[338453847,1726648241964,-500.0,0.00020892,2]
[338453848,1726648241973,-500.0,0.00020892,2]
[338453849,1726648241984,-500.0,0.00020892,2]
[338453850,1726648241994,-640.88378576,0.00020892,2]
[338453851,1726648242004,-500.0,0.00020892,2]
[338453852,1726648242014,-20053.15693236,0.00020894,2]
[338453853,1726648242025,-1000.0,0.00020954,2]
[338453854,1726648242037,-500.0,0.00021,2]
[338453855,1726648242048,-150.0,0.00021,2]
[338453856,1726648242059,-420.0,0.00021121,2]
[338453857,1726648242072,-420.0,0.00021323,2]
[338453858,1726648242081,-179.98,0.0002173,2]
[338453859,1726648242092,-1000.0,0.00021778,2]
[338453860,1726648242104,-166.666666,0.00021918,2]
[338453861,1726648242115,-428.64,0.0002199,3]
[338453862,1726648242127,-1000.0,0.00022,22]
[338453863,1726648242137,-1965.877993,0.00022,2]
[338453864,1726648242148,-1000.0,0.00022324,2]
[338453865,1726648242159,-1905.57372636,0.00022425,2]
[338453866,1726648242171,-166.666666,0.00022431,2]
[338453867,1726648242183,-153.0,0.00022488,2]
[338453868,1726648242195,-153.0,0.00022488,2]
[338453869,1726648242206,-153.0,0.00022488,2]
[338453870,1726648242217,-153.0,0.00022488,2]
[338453871,1726648242229,-153.0,0.00022488,2]
[338453872,1726648242239,-153.6548387,0.00022488,2]
[338453873,1726648242252,-73121.1886448,0.00022505,3]
[338453874,1726648242262,-52399.873349,0.00022505,3]
[338453875,1726648242273,-5000.0,0.00022525,2]
[338453876,1726648242284,-5000.0,0.00022525,2]
[338453877,1726648242296,-1905.57372633,0.00022544,2]
[338453878,1726648242305,-1905.57372633,0.00022662,2]
[338453879,1726648242316,-1905.57372633,0.00022781,2]
[338453880,1726648242327,-1230.06580488,0.0002283,2]
[338453881,1726648242337,-1905.57372633,0.00022899,2]
[338453882,1726648242347,-317.29079112,0.00022899,2]
[338453883,1726648242357,-461.36522932,0.00022899,2]
[338453884,1726648242366,-500.0,0.00022899,2]
[338453885,1726648242375,-500.0,0.00022899,2]
[338453886,1726648242385,-500.0,0.00022899,2]
[338453887,1726648242394,-500.0,0.00022899,2]
[338453888,1726648242403,-500.0,0.00022899,2]
[338453889,1726648242413,-331.82633567,0.00022899,2]
[338453890,1726648242422,-449.02431572,0.00022899,2]
[338453891,1726648242431,-500.0,0.00022899,2]
[338453892,1726648242441,-500.0,0.00022899,2]
[338453893,1726648242450,-500.0,0.00022899,2]
[338453894,1726648242459,-500.0,0.00022899,2]
[338453895,1726648242469,-73121.1886448,0.000229,3]
[338453896,1726648242480,-52399.873349,0.000229,3]
[338453897,1726648242489,-30068.61141356,0.0002291,3]
[338453898,1726648242502,-43052.57723124,0.0002291,3]
[338453899,1726648242512,-52399.873349,0.0002291,3]
[338453900,1726648242522,-2000.0,0.0002292,2]
[338453901,1726648242533,-2000.0,0.0002292,2]
[338453902,1726648242544,-2000.0,0.0002292,2]
[338453903,1726648242555,-2000.0,0.0002292,2]
[338453904,1726648242566,-1132.64948094,0.0002292,2]
[338453905,1726648242578,-73121.1886448,0.0002292,3]
[338453906,1726648242589,-46304.28175629,0.0002292,3]
[338453911,1726648243418,-482.32874851,0.0002292,3]
[338453915,1726648244047,1068.18,0.00022999,60]
[338453917,1726648244773,500.0,0.00022999,60]
[338453921,1726648246445,14129.51,0.00022999,60]
[338453922,1726648247836,500.0,0.00022999,60]
[338453923,1726648248982,1431.39,0.00022999,60]
[338453924,1726648250538,500.0,0.00022999,60]
[338453925,1726648251751,500.0,0.00022999,60]
[338453926,1726648252394,1366.5,0.00022999,60]
[338453927,1726648252450,500.0,0.00022999,60]
[338453928,1726648256330,553.71,0.00022999,60]
[338453929,1726648257706,500.0,0.00022999,60]
[338453930,1726648258192,647.29,0.00022999,60]
[338453931,1726648258632,590.08,0.00022999,60]
[338453932,1726648259117,897.64,0.00022999,60]
[338453933,1726648262589,500.0,0.00022999,60]
[338453934,1726648262835,1297.22,0.00022999,60]
[338453935,1726648262886,500.0,0.00022999,60]
[338453936,1726648264485,1823.99,0.00022999,60]
[338453937,1726648265201,500.0,0.00022999,60]
[338453938,1726648265732,848.53,0.00022999,60]
[338453939,1726648266066,500.0,0.00022999,60]
[338453940,1726648267998,500.0,0.00022999,60]
[338453941,1726648268466,500.0,0.00022999,60]
[338453942,1726648270327,500.0,0.00022999,60]
[338453943,1726648271194,500.0,0.00022999,60]
[338453944,1726648271272,500.0,0.00022999,60]
[338453945,1726648273575,2670.39,0.00022999,60]
[338453946,1726648275472,1568.24,0.00022999,60]
[338453947,1726648275854,500.0,0.00022999,60]
[338453948,1726648276578,500.0,0.00022999,60]
[338453949,1726648278687,2927.6,0.00022999,60]
[338453950,1726648278809,663.05,0.00022999,60]
[338453951,1726648278870,500.0,0.00022999,60]
[338453952,1726648280552,500.0,0.00022999,60]
[338453953,1726648281528,1129.41,0.00022999,60]
[338453954,1726648281866,723.28,0.00022999,60]
[338453955,1726648282150,558.87,0.00022999,60]
[338453956,1726648283561,539.49,0.00022999,60]
[338453957,1726648285903,500.0,0.00022999,60]
[338453958,1726648286567,500.0,0.00022999,60]
[338453959,1726648286622,1451.25,0.00022999,60]
[338453960,1726648287313,1451.17,0.00022999,60]
[338453971,1726649439329,-150.0,0.00020584,2]
[338453972,1726649439340,-524.0,0.00020584,2]
[338453973,1726649439350,-1216.0,0.00020584,2]
[338453974,1726649439360,-300.0,0.00020891,2]
[338453975,1726649439369,-500.0,0.00020892,2]
[338453976,1726649439379,-500.0,0.00020892,2]
[338453977,1726649439389,-500.0,0.00020892,2]
[338453978,1726649439398,-500.0,0.00020892,2]
[338453979,1726649439407,-500.0,0.00020892,2]
[338453980,1726649439416,-500.0,0.00020892,2]
[338453981,1726649439425,-500.0,0.00020892,2]
[338453982,1726649439434,-500.0,0.00020892,2]
[338453983,1726649439443,-500.0,0.00020892,2]
[338453984,1726649439452,-500.0,0.00020892,2]
[338453985,1726649439461,-500.0,0.00020892,2]
[338453986,1726649439471,-500.0,0.00020892,2]
[338453987,1726649439480,-500.0,0.00020892,2]
[338453988,1726649439489,-500.0,0.00020892,2]
[338453989,1726649439500,-500.0,0.00020892,2]
[338453990,1726649439510,-500.0,0.00020892,2]
[338453991,1726649439519,-354.54264286,0.00020892,2]
[338453992,1726649439528,-500.0,0.00020892,2]
[338453993,1726649439537,-4825.34733167,0.00021591,2]
[338453994,1726649439546,-4825.34733167,0.00022437,2]
[338453995,1726649439555,-791.1749258,0.0002292,3]
[338454029,1726649440664,-2187.42520509,0.0002292,3]
[338454041,1726649446603,-2634.66271331,0.0002292,3]
[338454042,1726649446613,-29588.16733435,0.0002293,3]
[338454043,1726649446625,-301.24211674,0.0002293,3]
[338454046,1726649450576,500.0,0.00022999,60]
[338454047,1726649455894,813.18,0.00022999,60]
[338454048,1726649456383,525.05024269,0.00022999,60]
[338454049,1726649461226,639.41,0.00022999,60]
[338454050,1726649463715,1085.1,0.00022999,60]
[338454051,1726649464530,500.0,0.00022999,60]
[338454052,1726649465063,953.69,0.00022999,60]
[338454053,1726649465397,500.0,0.00022999,60]
[338454054,1726649465743,500.0,0.00022999,60]
[338454055,1726649465817,500.0,0.00022999,60]
[338454056,1726649466549,3892.9,0.00022999,60]
[338454057,1726649466830,500.0,0.00022999,60]
[338454058,1726649467418,709.9,0.00022999,60]
[338454059,1726649467876,500.0,0.00022999,60]
[338454060,1726649468247,1459.32,0.00022999,60]
[338454061,1726649468336,1521.98,0.00022999,60]
[338454062,1726649468772,500.0,0.00022999,60]
[338454063,1726649469012,1621.14,0.00022999,60]
[338454064,1726649469924,1333.01,0.00022999,60]
[338454065,1726649470396,800.15,0.00022999,60]
[338454066,1726649471507,500.0,0.00022999,60]
[338454067,1726649471632,6123.47,0.00022999,60]
[338454068,1726649472547,500.0,0.00022999,60]
[338454070,1726649474264,500.0,0.00022999,60]
[338454071,1726649474672,1550.71,0.00022999,60]
[338454072,1726649474724,500.0,0.00022999,60]
[338454073,1726649475345,1307.38,0.00022999,60]
[338454074,1726649475418,1221.77,0.00022999,60]
[338454075,1726649476657,500.0,0.00022999,60]
[338454076,1726649477010,500.0,0.00022999,60]
[338454077,1726649477281,500.0,0.00022999,60]
[338454078,1726649478002,500.0,0.00022999,60]
[338454079,1726649480455,1235.63,0.00022999,60]
[338454080,1726649481028,635.42,0.00022999,60]
[338454081,1726649481334,500.0,0.00022999,60]
[338454082,1726649482086,500.0,0.00022999,60]
[338454083,1726649482134,500.0,0.00022999,60]
[338454084,1726649482348,500.0,0.00022999,60]
[338454085,1726649483270,500.0,0.00022999,60]
[338454086,1726649483781,1398.51,0.00022999,60]
[338454087,1726649483968,1988.64,0.00022999,60]
[338454088,1726649484220,500.0,0.00022999,60]
[338454089,1726649484856,860.24,0.00022999,60]
[338454090,1726649485212,581.47,0.00022999,60]
[338454091,1726649486075,500.0,0.00022999,60]
[338454092,1726649487979,500.0,0.00022999,60]
[338454093,1726649488041,500.0,0.00022999,60]
[338454094,1726649488093,500.0,0.00022999,60]
[338454095,1726649488431,500.0,0.00022999,60]
[338454096,1726649489440,1354.39,0.00022999,60]
[338454097,1726649489803,546.84,0.00022999,60]
[338454098,1726649489902,500.0,0.00022999,60]
[338454099,1726649490554,500.0,0.00022999,60]
[338454100,1726649490641,500.0,0.00022999,60]
[338454101,1726649490690,2750.35,0.00022999,60]
[338454102,1726649491004,500.0,0.00022999,60]
[338454103,1726649491368,500.0,0.00022999,60]
[338454104,1726649492870,500.0,0.00022999,60]
[338454105,1726649493118,2873.34,0.00022999,60]
[338454106,1726649493227,1139.99,0.00022999,60]
[338454107,1726649493742,500.0,0.00022999,60]
[338454108,1726649494148,2390.51,0.00022999,60]
[338454109,1726649494398,500.0,0.00022999,60]
[338454110,1726649494494,993.15,0.00022999,60]
[338454111,1726649495012,547.38403662,0.00022999,60]
[338454112,1726649495409,517.02,0.00022999,60]
[338454113,1726649495474,3229.22,0.00022999,60]
[338454114,1726649495554,500.0,0.00022999,60]
[338454115,1726649495862,500.0,0.00022999,60]
[338454116,1726649496493,1073.13,0.00022999,60]
[338454117,1726649497136,1217.64,0.00022999,60]
[338454118,1726649497692,500.0,0.00022999,60]
[338454119,1726649498163,513.81,0.00022999,60]
[338454120,1726649498336,500.0,0.00022999,60]
[338454121,1726649498590,480.19384619,0.00022999,60]
[338454122,1726649499302,632.11,0.00022999,60]
[338454123,1726649499760,500.0,0.00022999,60]
[338454124,1726649499808,6039.75,0.00022999,60]
[338454125,1726649500053,500.0,0.00022999,60]
[338454126,1726649500106,500.0,0.00022999,60]
[338454127,1726649500155,160.66338671,0.00022999,60]
[338454128,1726649500224,500.0,0.00022999,60]
[338454129,1726649500584,500.0,0.00022999,60]
[338454130,1726649501280,500.0,0.00022999,60]
[338454131,1726649502032,500.0,0.00022999,60]
[338454132,1726649502089,1309.57,0.00022999,60]
[338454133,1726649502141,1174.48,0.00022999,60]
[338454134,1726649503461,1269.84,0.00022999,60]
[338454135,1726649503560,444.588921,0.00022999,60]
[338454136,1726649503645,500.0,0.00022999,60]
[338454137,1726649504345,950.91,0.00022999,60]
[338454138,1726649504397,3768.41,0.00022999,60]
[338454139,1726649504675,500.0,0.00022999,60]
[338454140,1726649505570,675.42,0.00022999,60]
[338454141,1726649505625,1967.92,0.00022999,60]
[338454142,1726649506412,1309.27,0.00022999,60]
[338454143,1726649506466,500.0,0.00022999,60]
[338454144,1726649506550,500.0,0.00022999,60]
[338454145,1726649506817,500.0,0.00022999,60]
[338454147,1726649507352,534.41,0.00022999,60]
[338454148,1726649507420,2417.43,0.00022999,60]
[338454149,1726649507472,500.0,0.00022999,60]
[338454150,1726649508271,827.52,0.00022999,60]
[338454151,1726649509161,500.0,0.00022999,60]
[338454152,1726649509333,500.0,0.00022999,60]
[338454153,1726649509788,1462.76,0.00022999,60]
[338454154,1726649510431,1371.75,0.00022999,60]
[338454155,1726649510483,500.0,0.00022999,60]
[338454156,1726649510658,500.0,0.00022999,60]
[338454157,1726649510853,500.0,0.00022999,60]
[338454158,1726649512117,823.64,0.00022999,60]
[338454159,1726649513038,500.0,0.00022999,60]
[338454160,1726649514766,579.72,0.00022999,60]
[338454161,1726649514903,697.95,0.00022999,60]
[338454162,1726649515173,500.0,0.00022999,60]
[338454163,1726649516227,1349.77,0.00022999,60]
[338454164,1726649516649,713.84,0.00022999,60]
[338454165,1726649516880,500.0,0.00022999,60]
[338454166,1726649516928,2252.38,0.00022999,60]
[338454167,1726649516983,500.0,0.00022999,60]
[338454168,1726649517383,500.0,0.00022999,60]
[338454169,1726649517789,1252.9,0.00022999,60]
[338454170,1726649518425,553.14,0.00022999,60]
[338454171,1726649518802,500.0,0.00022999,60]
[338454172,1726649519005,1340.24,0.00022999,60]
[338454173,1726649519141,500.0,0.00022999,60]
[338454174,1726649519498,500.0,0.00022999,60]
[338454175,1726649520102,2774.93,0.00022999,60]
[338454176,1726649520624,1289.6,0.00022999,60]
[338454177,1726649520760,1675.23,0.00022999,60]
[338454178,1726649521746,716.84,0.00022999,60]
[338454179,1726649522224,500.0,0.00022999,60]
[338454180,1726649523364,500.0,0.00022999,60]
[338454181,1726649523481,500.0,0.00022999,60]
[338454182,1726649524682,1923.45,0.00022999,60]
[338454183,1726649525392,730.5,0.00022999,60]
[338454184,1726649526060,802.84,0.00022999,60]
[338454185,1726649526224,2559.12,0.00022999,60]
[338454186,1726649527342,500.0,0.00022999,60]
[338454187,1726649527495,500.0,0.00022999,60]
[338454188,1726649527694,608.94,0.00022999,60]
[338454189,1726649527975,500.0,0.00022999,60]
[338454190,1726649528701,5788.09,0.00022999,60]
[338454191,1726649528962,500.0,0.00022999,60]
[338454192,1726649530353,500.0,0.00022999,60]
[338454193,1726649532424,643.31,0.00022999,60]
[338454194,1726649532862,1133.92,0.00022999,60]
[338454195,1726649533550,500.0,0.00022999,60]
[338454196,1726649534037,500.0,0.00022999,60]
[338454197,1726649534705,13540.78,0.00022999,60]
[338454198,1726649534765,500.0,0.00022999,60]
[338454199,1726649534892,500.0,0.00022999,60]
[338454200,1726649535189,500.0,0.00022999,60]
[338454201,1726649536794,500.0,0.00022999,60]
[338454202,1726649537282,500.0,0.00022999,60]
[338454203,1726649537716,793.04,0.00022999,60]
[338454204,1726649538648,500.0,0.00022999,60]
[338454205,1726649539631,1476.74,0.00022999,60]
[338454206,1726649539696,500.0,0.00022999,60]
[338454207,1726649539799,1176.99,0.00022999,60]
[338454208,1726649539863,6146.67,0.00022999,60]
[338454209,1726649540127,699.78,0.00022999,60]
[338454210,1726649541432,500.0,0.00022999,60]
[338454211,1726649542420,1842.62,0.00022999,60]
[338454212,1726649543814,500.0,0.00022999,60]
[338454213,1726649544527,762.64,0.00022999,60]
[338454214,1726649545595,185.79070844,0.00022999,60]
[338454215,1726649545756,1466.89,0.00022999,60]
[338454216,1726649545829,758.58,0.00022999,60]
[338454217,1726649546198,500.0,0.00022999,60]
[338454218,1726649546638,500.0,0.00022999,60]
[338454219,1726649546687,1228.69,0.00022999,60]
[338454220,1726649547466,565.49,0.00022999,60]
[338454221,1726649547527,5546.92,0.00022999,60]
[338454222,1726649548379,1463.96,0.00022999,60]
[338454223,1726649548681,1887.37,0.00022999,60]
[338454224,1726649548876,500.0,0.00022999,60]
[338454225,1726649548951,1322.25,0.00022999,60]
[338454226,1726649549100,758.0,0.00022999,60]
[338454227,1726649549185,557.25,0.00022999,60]
[338454228,1726649549335,500.0,0.00022999,60]
[338454229,1726649549784,500.0,0.00022999,60]
[338454230,1726649550682,349.92014342,0.00022999,60]
[338454231,1726649550750,500.0,0.00022999,60]
[338454232,1726649551282,2187.45,0.00022999,60]
[338454233,1726649551421,1423.6,0.00022999,60]
[338454234,1726649551501,599.6,0.00022999,60]
[338454235,1726649552084,760.0,0.00022999,60]
[338454236,1726649552537,500.0,0.00022999,60]
[338454237,1726649552673,500.0,0.00022999,60]
[338454238,1726649553050,707.94,0.00022999,60]
[338454239,1726649555518,512.61,0.00022999,60]
[338454240,1726649556399,500.0,0.00022999,60]
[338454241,1726649556458,500.0,0.00022999,60]
[338454242,1726649556511,500.0,0.00022999,60]
[338454243,1726649556570,2968.47,0.00022999,60]
[338454244,1726649556742,2176.7,0.00022999,60]
[338454245,1726649557408,1671.13,0.00022999,60]
[338454246,1726649557588,1982.45,0.00022999,60]
[338454247,1726649558112,500.0,0.00022999,60]
[338454248,1726649559079,500.0,0.00022999,60]
[338454249,1726649559660,500.0,0.00022999,60]
[338454250,1726649559712,855.55,0.00022999,60]
[338454251,1726649559772,500.0,0.00022999,60]
[338454252,1726649560057,500.0,0.00022999,60]
[338454253,1726649560186,5315.8,0.00022999,60]
[338454254,1726649560562,500.0,0.00022999,60]
[338454255,1726649561014,500.0,0.00022999,60]
[338454256,1726649561087,1200.7,0.00022999,60]
[338454257,1726649561849,2753.62,0.00022999,60]
[338454258,1726649562299,500.0,0.00022999,60]
[338454259,1726649563074,1276.1,0.00022999,60]
[338454260,1726649563198,500.0,0.00022999,60]
[338454261,1726649563334,2098.72,0.00022999,60]
[338454262,1726649563538,500.0,0.00022999,60]
[338454263,1726649565308,500.0,0.00022999,60]
[338454264,1726649565838,500.0,0.00022999,60]
[338454265,1726649566335,532.49,0.00022999,60]
[338454266,1726649566592,500.0,0.00022999,60]
[338454267,1726649566979,500.0,0.00022999,60]
[338454268,1726649568007,500.0,0.00022999,60]
[338454269,1726649568084,500.0,0.00022999,60]
[338454270,1726649568437,728.14,0.00022999,60]
[338454271,1726649568940,6867.07,0.00022999,60]
[338454272,1726649569203,1894.65,0.00022999,60]
[338454273,1726649569252,500.0,0.00022999,60]
[338454274,1726649569437,500.0,0.00022999,60]
[338454275,1726649569521,512.76,0.00022999,60]
[338454276,1726649569758,1028.73,0.00022999,60]
[338454277,1726649570697,1843.3,0.00022999,60]
[338454278,1726649570890,1358.38,0.00022999,60]
[338454279,1726649570971,500.0,0.00022999,60]
[338454280,1726649571198,500.0,0.00022999,60]
[338454281,1726649572065,500.0,0.00022999,60]
[338454282,1726649572228,500.0,0.00022999,60]
[338454283,1726649572412,3011.86,0.00022999,60]
[338454284,1726649572720,500.0,0.00022999,60]
[338454285,1726649573089,500.0,0.00022999,60]
[338454286,1726649574343,1168.0,0.00022999,60]
[338454287,1726649574554,670.67,0.00022999,60]
[338454288,1726649576335,500.0,0.00022999,60]
[338454289,1726649577007,500.0,0.00022999,60]
[338454290,1726649577266,570.6,0.00022999,60]
[338454291,1726649577885,1482.17,0.00022999,60]
[338454292,1726649578150,521.36819032,0.00022999,60]
[338454293,1726649578225,500.0,0.00022999,60]
[338454294,1726649578274,967.6,0.00022999,60]
[338454295,1726649578428,781.16,0.00022999,60]
[338454296,1726649578832,500.0,0.00022999,60]
[338454297,1726649578918,500.0,0.00022999,60]
[338454298,1726649579087,1699.7,0.00022999,60]
[338454299,1726649579239,1000.0,0.00022999,60]
[338454300,1726649579537,2088.73,0.00022999,60]
[338454301,1726649580300,500.0,0.00022999,60]
[338454302,1726649580506,336.129704,0.00022999,60]
[338454303,1726649580562,500.0,0.00022999,60]
[338454304,1726649580764,500.0,0.00022999,60]
[338454305,1726649580884,500.0,0.00022999,60]
[338454306,1726649581062,500.0,0.00022999,60]
[338454307,1726649581910,518.02,0.00022999,60]
[338454308,1726649583297,1401.81,0.00022999,60]
[338454309,1726649584029,1343.61,0.00022999,60]
[338454310,1726649584092,500.0,0.00022999,60]
[338454311,1726649584673,1766.5,0.00022999,60]
[338454312,1726649585549,1364.28,0.00022999,60]
[338454313,1726649585674,500.0,0.00022999,60]
[338454314,1726649585882,826.51,0.00022999,60]
[338454315,1726649586785,5903.93,0.00022999,60]
[338454316,1726649587984,1006.69,0.00022999,60]
[338454317,1726649588092,600.47,0.00022999,60]
[338454318,1726649588460,853.92,0.00022999,60]
[338454319,1726649588636,1371.37,0.00022999,60]
[338454320,1726649589091,500.0,0.00022999,60]
[338454321,1726649589801,757.43,0.00022999,60]
[338454322,1726649589863,500.0,0.00022999,60]
[338454323,1726649591127,500.0,0.00022999,60]
[338454324,1726649591704,813.71,0.00022999,60]
[338454325,1726649592410,500.0,0.00022999,60]
[338454326,1726649592617,500.0,0.00022999,60]
[338454327,1726649592744,975.4,0.00022999,60]
[338454328,1726649592803,500.0,0.00022999,60]
[338454329,1726649593971,536.9,0.00022999,60]
[338454330,1726649594364,1058.13,0.00022999,60]
[338454331,1726649594607,3046.24,0.00022999,60]
[338454332,1726649594699,632.66,0.00022999,60]
[338454333,1726649595431,522.69,0.00022999,60]
[338454334,1726649595618,500.0,0.00022999,60]
[338454335,1726649595709,1905.78,0.00022999,60]
[338454336,1726649595777,1634.09,0.00022999,60]
[338454337,1726649595998,500.0,0.00022999,60]
[338454338,1726649596748,1466.54,0.00022999,60]
[338454339,1726649597172,2399.4,0.00022999,60]
[338454340,1726649597598,500.0,0.00022999,60]
[338454341,1726649598172,500.0,0.00022999,60]
[338454342,1726649598273,1284.4,0.00022999,60]
[338454343,1726649599077,500.0,0.00022999,60]
[338454344,1726649599337,1066.62,0.00022999,60]
[338454345,1726649599928,500.0,0.00022999,60]
[338454346,1726649599983,865.74,0.00022999,60]
[338454347,1726649601160,500.0,0.00022999,60]
[338454348,1726649601827,500.0,0.00022999,60]
[338454349,1726649602349,500.0,0.00022999,60]
[338454350,1726649602630,500.0,0.00022999,60]
[338454351,1726649602781,672.38,0.00022999,60]
[338454352,1726649603798,500.0,0.00022999,60]
[338454353,1726649604566,500.0,0.00022999,60]
[338454354,1726649604747,1240.24,0.00022999,60]
[338454355,1726649605249,500.0,0.00022999,60]
[338454356,1726649605492,500.0,0.00022999,60]
[338454357,1726649605877,500.0,0.00022999,60]
[338454358,1726649607193,5657.94,0.00022999,60]
[338454359,1726649607674,5657.94,0.00022999,60]
[338454360,1726649607734,1486.1,0.00022999,60]
[338454361,1726649608318,1458.56,0.00022999,60]
[338454362,1726649608655,705.76,0.00022999,60]
[338454363,1726649609417,1423.86,0.00022999,60]
[338454364,1726649609695,1301.47,0.00022999,60]
[338454365,1726649609874,500.0,0.00022999,60]
[338454366,1726649610090,500.0,0.00022999,60]
[338454367,1726649610547,500.0,0.00022999,60]
[338454368,1726649611400,500.0,0.00022999,60]
[338454369,1726649611638,500.0,0.00022999,60]
[338454370,1726649612271,5094.31,0.00022999,60]
[338454371,1726649612538,500.0,0.00022999,60]
[338454372,1726649613530,500.0,0.00022999,60]
[338454373,1726649613849,500.0,0.00022999,60]
[338454374,1726649613963,398.32077012,0.00022999,60]
[338454375,1726649614014,500.0,0.00022999,60]
[338454376,1726649614242,824.58,0.00022999,60]
[338454377,1726649614650,1424.17,0.00022999,60]
[338454378,1726649614940,517.91,0.00022999,60]
[338454379,1726649615276,615.41,0.00022999,60]
[338454380,1726649615698,500.0,0.00022999,60]
[338454381,1726649615979,500.0,0.00022999,60]
[338454382,1726649616334,1280.88,0.00022999,60]
[338454383,1726649616395,500.0,0.00022999,60]
[338454384,1726649616816,1502.57,0.00022999,60]
[338454385,1726649617079,500.0,0.00022999,60]
[338454386,1726649618211,638.11557423,0.00022999,60]
[338454387,1726649619187,1297.95,0.00022999,60]
[338454388,1726649619870,1692.89,0.00022999,60]
[338454389,1726649620140,1617.73,0.00022999,60]
[338454390,1726649620258,500.0,0.00022999,60]
[338454391,1726649621934,707.5,0.00022999,60]
[338454392,1726649622344,500.0,0.00022999,60]
[338454393,1726649622396,391.62128171,0.00022999,60]
[338454394,1726649622551,500.0,0.00022999,60]
[338454395,1726649622747,627.64320252,0.00022999,60]
[338454396,1726649623432,500.0,0.00022999,60]
[338454397,1726649623731,500.0,0.00022999,60]
[338454398,1726649624276,596.88931677,0.00022999,60]
[338454399,1726649624480,516.8,0.00022999,60]
[338454400,1726649624535,500.0,0.00022999,60]
[338454401,1726649624891,500.0,0.00022999,60]
[338454402,1726649625112,1810.56,0.00022999,60]
[338454403,1726649625197,500.0,0.00022999,60]
[338454404,1726649625425,500.0,0.00022999,60]
[338454405,1726649627199,813.18,0.00022999,60]
[338454406,1726649627855,500.0,0.00022999,60]
[338454407,1726649628692,531.53,0.00022999,60]
[338454408,1726649628742,500.0,0.00022999,60]
[338454409,1726649628823,500.0,0.00022999,60]
[338454410,1726649628891,500.0,0.00022999,60]
[338454411,1726649628946,500.0,0.00022999,60]